{"text_format":"3","workbook":"xlsx","n_sheets":4,"sheets":["Inventaire","Fournisseurs","Suivi","Valeurs"],"not_rendered":{"macros":1,"external_links":1,"defined_names":9},"read":"whole","date_system":"1900"}

{"sheet":"Inventaire","index":0,"n_rows":22,"n_cols":13,"rows_kept":22}
["*Référence","*Article","*Description","*Stock initial","*Stock alerte","*Stock","*Valeur","*Date MAJ","*Catégorie","*Fournisseur","*Statut","*Entrée","*Sortie"]
["600-007","Carpules Light bond medium paste","Colle pour braquette",0,5,{"$f":"$D2+$L2-$M2","v":0},"Pcs","2017-04-14","Cat1","test",{"$f":"IF($F2=\"\",\"\",IF($F2=$E2,\"Bientôt épuisé\",IF($F2<$E2,\"A commander\",IF($F2>$E2,\"En stock\",))))","v":"A commander"}]
["467-772","Chainette élastique MEDIUM TOOTH","Ivoire lache",0,5,{"$f":"$D3+$L3-$M3","v":0},"Pcs","2017-04-14","Cat1","test","A commander"]
["467-774","Chainette élastique MEDIUM WHITE","Blanc lache",0,5,0,"Pcs","2017-04-14","Cat1","test","A commander"]
["467-760","Chainette élastique SHORT BABY BLUE","Bleu clair normal",0,5,0,"Pcs","2017-04-14","Cat1","test","A commander"]
["467-797","Chainette élastique SHORT BABY PINK","Rose pale normal",0,5,0,"Pcs","2017-04-14","Cat1","test","A commander"]
["467-731","Chainette élastique SHORT CLEAR ","Transparent normal",0,5,0,"Pcs","2017-04-14","Cat1","test","A commander"]
["467-741","Chainette élastique SHORT FOREST GREEN","Vert foncé normal",0,5,0,"Pcs","2017-04-14","Cat1","test","A commander"]
["467-732","Chainette élastique SHORT GREY","Gris normal",0,5,0,"Pcs","2017-04-14","Cat1","test","A commander"]
["467-750","Chainette élastique SHORT KELLY GREEN","Vert pelouse normal",0,5,0,"Pcs","2017-04-14","Cat1","test","A commander"]
["467-735","Chainette élastique SHORT NAVY BLUE","Bleu marine normal",0,5,0,"Pcs","2017-04-14","Cat1","test","A commander"]
["467-733","Chainette élastique SHORT NEON GREEN","Vert flash normal",0,5,0,"Pcs","2017-04-14","Cat1","test","A commander"]
["467-736","Chainette élastique SHORT NEON PINK","Rose flash normal",0,5,0,"Pcs","2017-04-14","Cat1","test","A commander"]
["467-737","Chainette élastique SHORT PURPLE","Mauve normal",0,5,0,"Pcs","2017-04-14","Cat1","test","A commander"]
["467-734","Chainette élastique SHORT RED","Rouge normal",0,5,0,"Pcs","2017-04-14","Cat1","test","A commander"]
["467-746","Chainette élastique SHORT SILVER","Argenté normal",0,5,0,"Pcs","2017-04-14","Cat1","test","A commander"]
["467-742","Chainette élastique SHORT TOOTH","Ivoire normal",0,5,0,"Pcs","2017-04-14","Cat1","test","A commander"]
["467-744","Chainette élastique SHORT WHITE","Blanc normal",0,5,{"$f":"$D18+$L18-$M18","v":0},"Pcs","2017-04-14","Cat1","test","A commander"]
["467-740","Chainette élastique SHORT YELLOW","Jaune normal",0,5,0,"Pcs","2017-04-14","Cat1","test","A commander"]
["467-712","Chainette élastique X-SHORT TOOTH","Ivoire serré",0,5,0,"Pcs","2017-04-14","Cat1","test","A commander"]
["467-714","Chainette élastique X-SHORT WHITE","Blanc serré",0,5,0,"Pcs","2016-04-14","Cat1","test","A commander"]
["600-010","Rack de 50 bts de cire pour patient silver","Cire individuelle",0,5,0,"Pcs","2017-04-14","Cat1","test","A commander"]

{"sheet":"Fournisseurs","index":1,"n_rows":2,"n_cols":6,"rows_kept":2}
["*Fournisseurs","*Contact","*Tél.","*E-mail","*Site Web","*Adresse"]
["test","sqfsf","sqfsqf","sfqqsfqsfq","sqfqsfsqfs","sfqsqfqsf"]

{"sheet":"Suivi","index":2,"n_rows":0,"n_cols":0,"rows_kept":0}

{"sheet":"Valeurs","index":3,"n_rows":12,"n_cols":13,"rows_kept":12}
["Selectionner",null,"Selectionner",null,null,"Entrée",null,"Tout",{"$nulls":4},{"$f":"TODAY()","v":"2017-07-13"}]
["Bts",null,"Empreintes",null,null,"Sortie",null,"En Stock"]
["Bts de 10",null,"Soins",{"$nulls":4},"Bientôt épuisé"]
["Bts de 20",null,"Instruments",{"$nulls":4},"A commander"]
["Bts de 50",null,"Cat1"]
["Bts de 100"]
["Pcs"]
["Sachets"]
["Sachets de 10"]
["Sachets de 20 "]
["Sachets de 50"]
["Sachets de 100"]